Cogmind - Beta 15 @@@ ROGUE MODE // 2025.05.17 @ 20:34:17 Player: Cess183 Result: Destroyed by W1-4AK(R) with Subdweller Machine Gun Performance ------------- Evolutions (0) 0 Regions Visited (3) 600 Robots Destroyed (31) 155 Value Destroyed (571) 571 Prototype IDs (1) 20 Alien Tech Used (0) 0 Bonus (0) 0 TOTAL SCORE: 1346 Bonus ------- None Cogmind --------- Core Integrity 0/250 Matter 500/500 Energy 250/250 System Corruption 1% Temperature Cool (0) Movement Core (150) Ox2 Location -10/Subcaves Parts ------- > --- POWER (1) -------- Ion Engine > --- PROPULSION (2) --- (None) > --- UTILITY (2) ------ High-capacity Matter Pod > --- WEAPON (2) ------- (None) > --- INVENTORY (5) ---- Structural Scanner Experimental Sensor Array Improved Terrain Scanner ECM Suite Peak State ------------ > --- POWER ------------ Ion Engine > --- PROPULSION ------- Light Treads Light Treads > --- UTILITY ---------- High-capacity Matter Pod Experimental Sensor Array > --- WEAPON ----------- Assault Rifle Grenade Launcher > --- INVENTORY -------- Structural Scanner Improved Terrain Scanner ECM Suite Mining Claw [Rating: 15] Favorites ----------- Power Ion Engine Engine Ion Engine Propulsion Light Treads Treads Light Treads Utility Seismic Detector Device Seismic Detector Storage High-capacity Matter Pod Protection Light Armor Plating Weapon Assault Rifle Energy Gun Medium Laser Ballistic Gun Assault Rifle Launcher Grenade Launcher Slashing Weapon Mining Claw Build | -11 -10 -10 -10 ------- Run | Yrd Mat Min Sub Slots Evolved . | . . . . Power . | . . . . Propulsion . | . . . . Utility . | . . . . Weapon . | . . . . Parts Attached 18 | 8 5 4 1 Power 3 | 1 1 1 . Engine 3 | 1 1 1 . Core . | . . . . Reactor . | . . . . Propulsion 3 | 2 1 . . Treads 3 | 2 1 . . Leg . | . . . . Wheel . | . . . . Hover . | . . . . Flight . | . . . . Utility 7 | 2 2 3 . Device 3 | 1 1 1 . Storage 3 | 1 . 2 . Processor . | . . . . Hackware . | . . . . Protection 1 | . 1 . . Artifact . | . . . . Weapon 5 | 3 1 . 1 Energy Gun 2 | 2 . . . Energy Cannon . | . . . . Ballistic Gun 1 | 1 . . . Ballistic Cannon . | . . . . Launcher 1 | . 1 . . Special Weapon . | . . . . Impact Weapon . | . . . . Slashing Weapon 1 | . . . 1 Piercing Weapon . | . . . . Special Melee Weapon . | . . . . Unidentified Prototypes 1 | . . 1 . Parts Lost 8 | . 2 1 5 Power 1 | . . 1 . Propulsion 3 | . 1 . 2 Utility 2 | . 1 . 1 Weapon 2 | . . . 2 Highest Loss Streak 5 | . 1 1 5 To Critical Strikes . | . . . . Average Backups 4 | 1 4 4 4 Power . | . . . . Propulsion . | . . . . Utility 2 | . 2 3 4 Weapon 1 | . 1 1 . Tool/Special . | . . . . Unused Backups 3 | . 1 . 2 Power 1 | . 1 . . Propulsion . | . . . . Utility 2 | . . . 2 Weapon . | . . . . Tool/Special . | . . . . Average Slot Usage (%) 96 | . 93 99 87 Engine 13 | . 14 13 14 Treads 26 | . 24 28 26 Device 15 | . 17 14 11 Storage 8 | . . 13 14 Protection 2 | . 7 . . Energy Gun 3 | . 8 . . Ballistic Gun 13 | . 14 14 11 Launcher 10 | . 5 14 7 Peak Build Rating 15 | 7 7 15 8 Average Rating 7 | 4 6 8 7 On Entrance 5 | . 7 7 8 Naked Turns . | . . . . Heaviest Build 15 | 13 14 15 15 Greatest Support 40 | 40 40 40 40 Greatest Overweight (x) 2 | 2 . . 2 Average Overweight (x) . | . . . . Largest Inventory Capacity 8 | 8 8 5 5 Average Capacity 5 | 7 5 5 5 Most Carried 5 | 4 5 5 5 Average Carried 4 | 1 4 4 4 Final Capacity 8 | 8 5 5 5 Final Carried 5 | 3 4 5 4 Class Distribution -------------------- 100% | Mutant Dominant Class ---------------- Mutant | -10/Materials Mutant | -10/Mines Mutant | -10/Subcaves Resources | -11 -10 -10 -10 ----------- Run | Yrd Mat Min Sub Matter Collected 869 | 204 435 195 35 Remotely . | . . . . Salvage Created 722 | 32 404 286 . Parts 58 | 6 34 18 . Haulers Intercepted 1 | . 1 . . Recyclers Shooed . | . . . . Parts Field Recycled . | . . . . Retrieved Matter . | . . . . Parts Self-Destructed 2 | . . . 2 Prevented . | . . . . Kills | -11 -10 -10 -10 ------- Run | Yrd Mat Min Sub Combat Hostiles Destroyed 17 | . 10 7 . Guns 8 | . 8 . . AOE 9 | . 2 7 . Classes Destroyed 9 | 1 7 1 . Worker 3 | . 1 2 . Builder 2 | . 2 . . Tunneler 3 | 2 . 1 . Hauler 1 | . 1 . . Recycler 1 | . . 1 . Operator 1 | . 1 . . Watcher 3 | . 3 . . Swarmer 8 | . 5 3 . Grunt 9 | . 5 4 . Best Kill Streak 4 | 2 4 4 . Combat Bots Only 3 | . 3 3 . Max Kills in Single Turn 3 | 1 3 2 . Gunslinging . | . . . . Exploded 2 | . 2 1 . Melee . | . . . . Uniques/NPCs Destroyed . | . . . . Combat | -11 -10 -10 -10 -------- Run | Yrd Mat Min Sub Hostile Shots Fired 118 | . 88 14 16 Missed 31 | . 25 3 3 Hits 87 | . 63 11 13 Projectile 87 | . 63 11 13 Critical Strikes 2 | . 2 . . Damage Taken 1133 | . 644 153 336 Core 269 | . 125 32 112 Absorbed by Shields . | . . . . Core Remaining (%) 100 | 100 . . . Volleys Fired 68 | 2 47 16 3 Largest 2 | 2 2 2 2 Hottest 70 | 70 70 50 50 Shots Fired 112 | 4 81 23 4 Gun 97 | 4 78 14 1 Cannon . | . . . . Launcher 15 | . 3 9 3 Special . | . . . . Kinetic 64 | 2 47 14 1 Thermal 33 | 2 31 . . Explosive 15 | . 3 9 3 Electromagnetic . | . . . . Robot Hit Streak 8 | 3 8 4 3 Robot Miss Streak 7 | . 7 4 2 Penetration Max . | . . . . Secondary Targets 1 | . 1 . . Max Gunslinging Chain 1 | . 1 . . Shots Hit Robots 51 | 3 36 9 3 Core Hits 52 | 2 30 18 2 Critical Kills 1 | . 1 . . Critical Parts Destroyed . | . . . . Critical Strikes 2 | . 2 . . Burn 1 | . 1 . . Destroy 1 | . 1 . . Melee Attacks 10 | . . . 10 Impact . | . . . . Slashing 10 | . . . 10 Piercing . | . . . . Sneak Attacks . | . . . . Combat Hostiles . | . . . . Follow-up Attacks . | . . . . Damage Inflicted 1389 | 39 717 492 141 Guns 613 | 39 497 77 . Cannons . | . . . . Explosions 757 | . 220 404 133 Melee . | . . . . Ramming 19 | . . 11 8 Kinetic 400 | 14 309 77 . Thermal 213 | 25 188 . . Explosive 757 | . 220 404 133 Electromagnetic . | . . . . Impact . | . . . . Slashing . | . . . . Piercing . | . . . . Highest Corruption 1 | . . . 1 Average Corruption 1 | . . . 1 Corruption Purged . | . . . . Corruption Blocked . | . . . . Overload Shots . | . . . . Overflow Damage 3 | . . . 3 Projectiles . | . . . . Explosions 3 | . . . 3 Melee . | . . . . Knockbacks . | . . . . Impact . | . . . . Kinetic . | . . . . Secondary . | . . . . Self-Inflicted Damage 88 | . 25 10 53 Shots 5 | . 1 1 3 Rammed 12 | . . 3 9 Targets Rammed 12 | . . 3 9 Kicked . | . . . . Crushed . | . . . . Highest Temperature 234 | 9 234 6 . Average Temperature 94 | 6 101 3 . Received Heat Transfer 297 | . 231 66 . Effects 1 | . 1 . . Energy Bleed 1 | . 1 . . Siege Activations . | . . . . Martial Activations . | . . . . Shielding Activations . | . . . . Robots Disrupted . | . . . . Combat Hostiles . | . . . . Robots Corrupted . | . . . . Combat Hostiles . | . . . . Parts Fried . | . . . . Impact Corruptions . | . . . . Robots Melted . | . . . . Combat Hostiles . | . . . . Parts Melted . | . . . . Heat Transferred 703 | 74 629 . . Parts Sabotaged . | . . . . Parts Stolen . | . . . . Parts Stripped . | . . . . Power Chain Reactions . | . . . . Alert | -11 -10 -10 -10 ------- Run | Yrd Mat Min Sub Maximum Alert Level . | . . . . Low Security (%) 100 | 100 100 100 . Level 1 . | . . . . Level 2 . | . . . . Level 3 . | . . . . Level 4 . | . . . . Level 5 . | . . . . High Security . | . . . . Max Security . | . . . . Peak Influence 156 | 10 151 156 . Initial 15 | . . 15 . Average 52 | . 66 49 . Influence Increases 607 | 10 328 269 . Destroy 0b10 Robot/C 340 | . 200 140 . Destroy 0b10 Robot/NC 70 | 10 40 20 . Destroy Leader 78 | . 48 30 . Successful Hack 5 | . 5 . . Disable Machine 60 | . . 60 . Destroy Structure 39 | . 20 19 . Lose Combat Pursuer 15 | . 15 . . Influence Decreases 607 | 10 289 299 9 Entered New Map 29 | . . 24 5 Time Decay 548 | 10 269 265 4 Lost Part 30 | . 20 10 . Squads Dispatched 1 | . 1 . . Investigation . | . . . . Extermination . | . . . . Reinforcement 1 | . 1 . . Assault . | . . . . Garrison . | . . . . Intercept . | . . . . Searches Triggered . | . . . . Construction Impeded . | . . . . Haulers Reinforced . | . . . . Active Scanning Responses . | . . . . Cargo Convoy Interrupts . | . . . . Stealth | -11 -10 -10 -10 --------- Run | Yrd Mat Min Sub Distress Signals 2 | . 2 . . Communications Jammed . | . . . . Distress Signals . | . . . . Times Spotted 26 | . 18 7 1 Peak Tracking Total 5 | . 5 3 1 Tactical Retreats 1 | . 1 . . Traps | -11 -10 -10 -10 ------- Run | Yrd Mat Min Sub Traps Triggered . | . . . . Indirectly . | . . . . Trap Hack Attempts . | . . . . Triggered . | . . . . Disarmed . | . . . . Reprogrammed . | . . . . Reused . | . . . . Traps Extracted . | . . . . Installed . | . . . . Triggered . | . . . . Machines | -11 -10 -10 -10 ---------- Run | Yrd Mat Min Sub Machines Disabled 5 | . 1 4 . Max in Single Turn 4 | . 1 4 . Machines Repaired . | . . . . Machines Dismantled . | . . . . Machines Sabotaged . | . . . . Overloaded Fab Kills . | . . . . Hacking | -11 -10 -10 -10 --------- Run | Yrd Mat Min Sub Machines Accessed 3 | . 3 . . Terminals 2 | . 2 . . Fabricators . | . . . . Repair Stations . | . . . . Recycling Units 1 | . 1 . . Scanalyzers . | . . . . Garrison Access . | . . . . Total Hacks 4 | . 4 . . Successful 4 | . 4 . . Failed . | . . . . Catastrophic . | . . . . Database Lockouts . | . . . . Manual . | . . . . Terminals 2 | . 2 . . Fabricators . | . . . . Repair Stations . | . . . . Recycling Units 2 | . 2 . . Scanalyzers . | . . . . Garrison Access . | . . . . Terminal Hacks 2 | . 2 . . Hauler Manifests 1 | . 1 . . Zone Layout 1 | . 1 . . Fabricator Hacks . | . . . . Repair Station Hacks . | . . . . Recycling Unit Hacks 2 | . 2 . . Report Inventory 1 | . 1 . . Retrieve Components 1 | . 1 . . Scanalyzer . | . . . . Garrison Access Hacks . | . . . . Unauthorized Hacks . | . . . . Terminals . | . . . . Fabricators . | . . . . Repair Stations . | . . . . Recycling Units . | . . . . Scanalyzers . | . . . . Garrison Access . | . . . . Data Cores Recovered . | . . . . Used . | . . . . Hacking Detections 2 | . 2 . . Full Trace Events . | . . . . Feedback Events . | . . . . Feedback Blocked . | . . . . Robot Schematics Acquired . | . . . . Robots Built . | . . . . Authchips . | . . . . Time . | . . . . Total Robot Build Rating . | . . . . Part Schematics Acquired . | . . . . Parts Built . | . . . . Authchips . | . . . . Time . | . . . . Total Part Build Rating . | . . . . Parts Repaired . | . . . . Time . | . . . . Parts Recycled . | . . . . Recycled Matter . | . . . . Retrieved Matter . | . . . . Retrieved Components 3 | . 3 . . Parts Scanalyzed . | . . . . Part Schematics Acquired . | . . . . Parts Damaged . | . . . . Bothacking | -11 -10 -10 -10 ------------ Run | Yrd Mat Min Sub Used RIF Installer . | . . . . Robots Hacked . | . . . . Non-combat . | . . . . Combat . | . . . . Robot Hacks Applied . | . . . . Relay Couplers Released . | . . . . Fabnet Peak Effective % . | . . . . Robots Rewired . | . . . . Allies Hacked . | . . . . Hacks Repelled . | . . . . Allies | -11 -10 -10 -10 -------- Run | Yrd Mat Min Sub Total Allies . | . . . . Largest Group . | . . . . Highest-Rated Group . | . . . . Highest-Rated Ally . | . . . . Total Orders . | . . . . Ally Attacks . | . . . . Total Damage . | . . . . Kills . | . . . . Allies Corrupted . | . . . . Allies Melted . | . . . . Intel | -11 -10 -10 -10 ------- Run | Yrd Mat Min Sub Active Infowar (turns) 1842 | 12 750 983 97 Sensors 132 | . . 132 . Structural 364 | . 176 127 61 Seismic 1524 | 12 750 726 36 Robot Analysis Total . | . . . . Derelict Logs Recovered 2 | . . 2 . Drone Launches . | . . . . Drone Recoveries . | . . . . Exploration | -11 -10 -10 -10 ------------- Run | Yrd Mat Min Sub Turns Passed 2014 | 149 750 983 132 Spaces Moved 1070 | 86 361 575 48 Core 21 | 20 . . 1 Treads 1049 | 66 361 575 47 Legs . | . . . . Wheels . | . . . . Hover . | . . . . Flight . | . . . . Fastest Speed 50 | 50 160 160 150 Average Speed 159 | 148 160 160 159 Slowest Speed 160 | 160 160 160 160 Overloaded Moves . | . . . . Propulsion Burnouts . | . . . . Robots Hopped . | . . . . Potential Cave-ins . | . . . . Cave-ins Triggered . | . . . . Exploration Rate (%) 33 | 6 45 75 7 Regions Visited 3 Branch Regions 2 Pre-discovered Areas . | . . . . Known Exits Taken . | . . . . Unknown Exits Taken 3 | 1 1 1 . Scrap Searched 2 | . . 1 1 Spaces Dug 5 | . 5 . . Terrain Destroyed 56 | . 17 28 11 Melee . | . . . . Projectile . | . . . . AOE 56 | . 17 28 11 Terrain Rammed . | . . . . Walls Destroyed . | . . . . Machines Disabled . | . . . . Actions | -11 -10 -10 -10 --------- Run | Yrd Mat Min Sub Total 1238 | 100 453 611 74 Wait 39 | 1 28 10 . Move 1067 | 85 360 574 48 Hop . | . . . . Pick Up 10 | 4 5 1 . Fast Attach 9 | 6 2 1 . Attach 4 | 1 2 . 1 Detach 1 | . 1 . . Swap 11 | 1 3 5 2 Drop 7 | . 5 1 1 Fire 68 | 2 47 16 3 Melee 10 | . . . 10 Ram 2 | . . . 2 Kick . | . . . . Crush 10 | . . 3 7 Escape Stasis . | . . . . Rewire . | . . . . Trap . | . . . . Miscellaneous . | . . . . Route ------- -11/Scrapyard -10/Materials (discovered 2 exits: *Mat / [*Min]) -10/Mines (discovered 3 exits: *Mat x2 / [*Sub]) -10/Subcaves History --------- Turn | Location | Event 2 | -11/Scrapyard | Met Revision 17 22 | -11/Scrapyard | Discovered new exit (range 15) 150 | -11/Scrapyard | Entered Materials 311 | -10/Materials | Build established: Mutant 324 | -10/Materials | Discovered new exit (range 16) 607 | -10/Materials | Discovered new exit (range 10) 900 | -10/Materials | Entered Mines 1102 | -10/Mines | Found a Scrap Suit stashed away for nefarious purposes 1247 | -10/Mines | Core integrity fell below 50% 1294 | -10/Mines | Identified exit to Materials 1598 | -10/Mines | Found a damaged Exp. Sensor Array with a note attached 1601 | -10/Mines | Found Prototype Device 1601 | -10/Mines | Identified Exp. Sensor Array 1731 | -10/Mines | Learned Materials security intel 1744 | -10/Mines | Discovered new exit (range 10) 1821 | -10/Mines | Discovered exit to Materials (range 7) 1883 | -10/Mines | Entered Subcaves 2008 | -10/Subcaves | Core integrity fell below 20% 2015 | -10/Subcaves | Destroyed by W1-4AK(R) with Subdweller Machine Gun Last Messages --------------- AMBIENT_HEAT=-10 GOAL=ESCAPE 01937_ Dropped Mining Claw. 01980_ Seismic Detector destroyed. 01980_ Assault Rifle destroyed. 01980_ Destroyed Assault Rifle. 01986_ Grenade Launcher destroyed. 01994_ W1-4AK(R) affixes Scrap Shield Fragment to Scrap Shield. 01995_ Lgt. Treads destroyed. 01995_ Slammed into W1-4AK(R). 02011_ Lgt. Treads destroyed. 02011_ Searching scrap... 02011_ Found Mak. Light Armor Plating. 02011_ Found Battle Cannon. 02011_ Found 57 Matter. 02012_ Acquired 35 matter. 02013_ Slammed into W1-4AK(R). 02013_ Destabilizing: System corrupted (+1). 02014_ Slammed into W1-4AK(R). Map ----- +----------------------------------------------------+ | ?????????????????????????????????????????????????? | | ?????????????????????????????????????????????????? | | ?????????????????????????????????????????????????? | | ????????????????????????# ???????????????????????? | | ???????????????????????? ???????????????????????? | | ???????????????? ?????? ???????????????????????? | | ??????????????? ###??? ???????????????????????? | | ?????????????? # ??? ???????????????????????? | | ??????????????? ??? ???????????????????????? | | ???????????????? ??? ???????????????????????? | | ????????????????? #?? #??????????????????????? | | ?????????????????? #?# ??????????????????????? | | ??????????????????? ## #??????????????????????? | | ?######"""###??????? ## ##?????????????????????? | | ########### ?????# # #?????????????????????? | | ### / # #####???# # #?????????????????????? | | ## ####???# ## ##?????????????????????? | | # # ###?## ###???????????????????? | | # ##### #????#??????????????? | | ## ### # # ###? #??????????????? | | ### # #### # ####????????????? | | #### #### ### #### #????????????? | | ?###################### $ ##????????????? | | ??########?#####??#####$ < ##?????????????? | | ??????????????????????## R #??????????????? | | ??????????????????????#!%@$ < #??????????????? | | ??????????????????????#]%# # ##??????????????? | | ??????????????????????####### #???????????????? | | ????????????????????????????? #???????????????? | | ?????????????????????????????# ###???????????????? | | ?????????????????????????????? ?????????????????? | | ?????????????????????????????? #????????????????? | | ?????????????????????????????? ##????????????????? | | ?????????????????????????????? ?????????????????? | | ?????????????????????????????? ?????????????????? | | ???????????????????????????????#?????????????????? | | ?????????????????????????????????????????????????? | | ?????????????????????????????????????????????????? | | ?????????????????????????????????????????????????? | | ?????????????????????????????????????????????????? | | ?????????????????????????????????????????????????? | | ?????????????????????????????????????????????????? | | ?????????????????????????????????????????????????? | | ?????????????????????????????????????????????????? | | ?????????????????????????????????????????????????? | | ?????????????????????????????????????????????????? | | ?????????????????????????????????????????????????? | | ?????????????????????????????????????????????????? | | ?????????????????????????????????????????????????? | | ?????????????????????????????????????????????????? | +----------------------------------------------------+ Best States ------------- Heat Dissipation 25 Energy Generation 10 Energy Capacity 250 Matter Stores 500 Matter Capacity 500 Sight Range 16 Robot Scan Range 20 Terrain Scan Density 10 Armor Coverage 150 Evasion (%) 40 Recoil Reduction 2 Item Schematics ----------------- None Robot Schematics ------------------ None Fabricated ------------ Nothing Repaired ---------- Nothing Alien Tech Used ----------------- None Achievements -------------- None Challenges ------------ None Game ------ Seed WeightPropulsionEdition Manual? 0 Play Time 00:24:48 Cumulative 11.9 hours Start 2025.05.17 @ 20:09:47 End 2025.05.17 @ 20:34:17 Sessions 1 Manual Loads 0 Difficulty Rogue Special Mode None Game No. 15 Rogue 15 Adventurer 0 Explorer 0 Win Type - Total 0 Types 0/0/0/0/0/0/0/0/0/0 Lore% 11 Gallery% 13 Achievement% 13 Wizard Run 0 Options --------- Layout 1 ASCII 0 Keyboard 1 Movement Vi Keybinds 0 Fullscreen 1 Font 24/Smallcaps Map View 50x35 Zoom Use 0% Tactical HUD 1 Map Filters NONE Filters NONE Steam 1 RUN: 776a4695-9e4b-42a9-8c91-aee31de0b15f